fUSD/lending_fUSD_20250428
["ID","MTS","AMOUNT","RATE_DAILY","PERIOD"]
[359209208,1745813542017,384.63394623,0.00045899,30]
[359209229,1745813542649,384.63394623,0.00045899,30]
[359209272,1745813549520,150.042813,0.00036986,120]
[359209274,1745813552089,150.042813,0.00036986,120]
[359209275,1745813553120,150.042813,0.00036986,120]
[359209276,1745813553711,150.042813,0.00036986,120]
[359209277,1745813554147,150.042813,0.00036986,120]
[359209278,1745813554365,1000.0,0.00045899,30]
[359209279,1745813554527,150.042813,0.00036986,120]
[359209280,1745813554894,150.042813,0.00036986,120]
[359209281,1745813555113,1000.0,0.00045899,30]
[359209282,1745813555288,150.042813,0.00036986,120]
[359209283,1745813555321,155.398153,0.0002,5]
[359209284,1745813555447,1000.0,0.00045899,30]
[359209285,1745813555582,155.398153,0.0002,5]
[359209286,1745813555670,150.042813,0.00036986,120]
[359209287,1745813555801,1000.0,0.00045899,30]
[359209288,1745813555862,155.398153,0.0002,5]
[359209289,1745813556121,150.042813,0.00036986,120]
[359209290,1745813556541,150.042813,0.00036986,120]
[359209291,1745813556935,150.042813,0.00036986,120]
[359209292,1745813557304,150.042813,0.00036986,120]
[359209293,1745813557719,150.042813,0.00036986,120]
[359209294,1745813558129,150.042813,0.00036986,120]
[359209295,1745813558539,150.042813,0.00036986,120]
[359209296,1745813558963,150.042813,0.00036986,120]
[359209297,1745813559218,902.0,0.00045899,30]
[359209298,1745813559384,150.042813,0.00036986,120]
[359209299,1745813559803,150.042813,0.00036986,120]
[359209300,1745813560245,150.042813,0.00036986,120]
[359209301,1745813560685,150.042813,0.00036986,120]
[359209302,1745813561072,150.042813,0.00036986,120]
[359209303,1745813561491,150.042813,0.00036986,120]
[359209304,1745813561898,150.042813,0.00036986,120]
[359209305,1745813562308,150.042813,0.00036986,120]
[359209306,1745813562727,150.042813,0.00036986,120]
[359209307,1745813563157,150.042813,0.00036986,120]
[359209308,1745813563654,150.042813,0.00036986,120]
[359209309,1745813565515,999.9619929,0.00045899,30]
[359209310,1745813572168,150.042813,0.00036986,120]
[359209311,1745813572619,1000.0,0.00045899,30]
[359209312,1745813572670,150.042813,0.00036986,120]
[359209313,1745813573116,150.042813,0.00036986,120]
[359209314,1745813573187,1000.0,0.00045899,30]
[359209315,1745813573538,150.042813,0.00036986,120]
[359209316,1745813574013,150.042813,0.00036986,120]
[359209317,1745813574477,150.042813,0.00036986,120]
[359209318,1745813574984,150.042813,0.00036986,120]
[359209319,1745813575485,150.042813,0.00036986,120]
[359209320,1745813575972,150.042813,0.00036986,120]
[359209321,1745813576503,150.042813,0.00036986,120]
[359209322,1745813576822,150.042813,0.00036986,120]
[359209323,1745813589407,150.042813,0.00036986,120]
[359209324,1745813589591,4999.97874871,0.00045899,30]
[359209325,1745813589717,150.042813,0.00036986,120]
[359209326,1745813590050,150.042813,0.00036986,120]
[359209327,1745813590349,150.042813,0.00036986,120]
[359209328,1745813591180,150.042813,0.00036986,120]
[359209329,1745813591284,150.042813,0.00036986,120]
[359209330,1745813591608,150.042813,0.00036986,120]
[359209331,1745813591928,150.042813,0.00036986,120]
[359209332,1745813592326,150.042813,0.00036986,120]
[359209333,1745813592824,500.0,0.00035,120]
[359209334,1745813593184,489.24292,0.000365,120]
[359209335,1745813593864,1004.0,0.00045899,30]
[359209336,1745813599502,150.042813,0.00036986,120]
[359209337,1745813599867,150.042813,0.00036986,120]
[359209338,1745813600210,150.042813,0.00036986,120]
[359209339,1745813600707,150.042813,0.00036986,120]
[359209340,1745813601015,150.042813,0.00036986,120]
[359209341,1745813601732,500.0,0.00035,120]
[359209342,1745813602081,503.925343,0.000365,120]
[359209343,1745813604679,500.0,0.00026517,120]
[359209344,1745813605526,500.0,0.00035,120]
[359209345,1745813609119,150.042813,0.00036986,120]
[359209346,1745813620663,1008.0,0.00045899,30]
[359209347,1745813624234,1000.0,0.00045899,30]
[359209348,1745813626748,162.042813,0.00036986,120]
[359209349,1745813708095,151.0,0.00045901,30]
[359209350,1745813708629,151.0,0.00045901,30]
[359209351,1745813709341,151.0,0.00045901,30]
[359209352,1745813710152,151.0,0.00045901,30]
[359209353,1745813710821,151.0,0.00045901,30]
[359209354,1745813711673,151.0,0.00045901,30]
[359209355,1745813712409,151.0,0.00045901,30]
[359209356,1745813713073,151.0,0.00045901,30]
[359209357,1745813713781,151.0,0.00045901,30]
[359209358,1745813714481,151.0,0.00045901,30]
[359209359,1745813715127,151.0,0.00045901,30]
[359209360,1745813715782,151.0,0.00045901,30]
[359209361,1745813716435,151.0,0.00045901,30]
[359209362,1745813717077,151.0,0.00045901,30]
[359209363,1745813717720,151.0,0.00045901,30]
[359209364,1745813723871,350.428,0.00045901,30]
[359209365,1745813810512,1254.51,0.00017387,2]
[359209366,1745813827786,200.0,0.00045901,30]
[359209367,1745813828206,151.0,0.00045901,30]
[359209368,1745813828469,207.4,0.00045901,30]
[359209369,1745813828876,151.0,0.00045901,30]
[359209370,1745813829101,215.0738,0.00045901,30]
[359209371,1745813829519,151.0,0.00045901,30]
[359209372,1745813829736,223.0315306,0.00045901,30]
[359209373,1745813829841,250.0,0.0001928,2]
[359209374,1745813830147,151.0,0.00045901,30]
[359209375,1745813830773,151.0,0.00045901,30]
[359209376,1745813831046,231.28369723,0.00045901,30]
[359209377,1745813831569,239.84119403,0.00045901,30]
[359209378,1745813832193,248.71531821,0.00045901,30]
[359209379,1745813832819,257.91778498,0.00045901,30]
[359209380,1745813833509,267.46074303,0.00045901,30]
[359209381,1745813834649,277.35679052,0.00045901,30]
[359209382,1745813835298,287.61899177,0.00045901,30]
[359209383,1745813835976,298.26089446,0.00045901,30]
[359209384,1745813836857,309.29654756,0.00045901,30]
[359209385,1745813837307,320.74051982,0.00045901,30]
[359209386,1745813837943,332.60791905,0.00045901,30]
[359209387,1745813838591,344.91441206,0.00045901,30]
[359209388,1745813839251,357.6762453,0.00045901,30]
[359209389,1745813839939,370.91026638,0.00045901,30]
[359209390,1745813840622,384.63394623,0.00045901,30]
[359209391,1745813841312,384.63394623,0.00045901,30]
[359209392,1745813856441,152.09,0.00027425,30]
[359209393,1745813861249,4385.53450493,0.00045901,30]
[359209394,1745813868005,1800.0,0.00045901,30]
[359209395,1745813889820,273.0,0.00045901,120]
[359209396,1745813889987,1000.0,0.00019285,2]
[359209397,1745813918552,500.0,0.00032876,120]
[359209398,1745813918772,500.0,0.00032876,120]
[359209399,1745813919018,500.0,0.00032876,120]
[359209400,1745813919261,500.0,0.00032876,120]
[359209401,1745813919496,500.0,0.00032876,120]
[359209402,1745813919738,500.0,0.00032876,120]
[359209403,1745813919999,500.0,0.00032876,120]
[359209404,1745813920248,500.0,0.00032876,120]
[359209405,1745813920493,500.0,0.00032876,120]
[359209406,1745813920725,500.0,0.00032876,120]
[359209407,1745813920975,500.0,0.00032876,120]
[359209408,1745813921211,500.0,0.00032876,120]
[359209409,1745813921471,518.04797068,0.00032876,120]
[359209410,1745813929066,3600.0,0.00045903,120]
[359209411,1745813998920,250.0,0.00017,2]
[359209412,1745813999994,300.0,0.00019,2]
[359209413,1745814127467,200.0,0.00045903,120]
[359209414,1745814128104,207.4,0.00045903,120]
[359209415,1745814128896,215.0738,0.00045903,120]
[359209416,1745814129644,223.0315306,0.00045903,120]
[359209417,1745814130281,231.28369723,0.00045903,120]
[359209418,1745814130316,150.0,0.00019256,7]
[359209419,1745814131184,239.84119403,0.00045903,120]
[359209420,1745814131700,248.71531821,0.00045903,120]
[359209421,1745814132369,257.91778498,0.00045903,120]
[359209422,1745814133041,267.46074303,0.00045903,120]
[359209423,1745814133720,277.35679052,0.00045903,120]
[359209424,1745814134404,287.61899177,0.00045903,120]
[359209425,1745814135037,298.26089446,0.00045903,120]
[359209426,1745814135709,309.29654756,0.00045903,120]
[359209427,1745814136345,320.74051982,0.00045903,120]
[359209428,1745814137008,332.60791905,0.00045903,120]
[359209429,1745814137659,344.91441206,0.00045903,120]
[359209430,1745814138286,357.6762453,0.00045903,120]
[359209431,1745814138987,370.91026638,0.00045903,120]
[359209432,1745814140198,384.63394623,0.00045903,120]
[359209433,1745814140854,384.63394623,0.00045903,120]
[359209434,1745814190823,500.0,0.00033645,120]
[359209435,1745814198751,500.0,0.00033645,120]
[359209436,1745814201392,500.0,0.00026912,120]
[359209437,1745814201729,246.875844,0.00029012,120]
[359209438,1745814218707,1000.0,0.00036986,60]
[359209439,1745814244827,728.180125,0.00045903,30]
[359209440,1745814265450,501.68,0.00036986,60]
[359209441,1745814310974,332.81167711,0.00045903,120]
[359209442,1745814312602,193.03626111,0.00045903,30]
[359209443,1745814319736,294.28457172,0.00045903,120]
[359209444,1745814327943,429.38380138,0.00023,120]
[359209445,1745814328199,419.99635691,0.00045903,30]
[359209446,1745814329031,331.23817807,0.00045903,30]
[359209459,1745814360011,246.73780147,0.00045903,90]
[359209460,1745814364089,276.4573022,0.00045903,120]
[359209461,1745814374609,484.29651313,0.00045903,120]
[359209462,1745814402447,324.54,0.00019257,2]
[359209463,1745814403285,324.54,0.00026478,120]
[359209464,1745814403476,324.54,0.00028885,120]
[359209465,1745814421383,280.18283986,0.00045903,120]
[359209466,1745814424790,200.0,0.00045903,120]
[359209467,1745814425502,207.4,0.00045903,120]
[359209468,1745814425685,999.96199291,0.00045903,30]
[359209469,1745814426237,215.0738,0.00045903,120]
[359209470,1745814426912,223.0315306,0.00045903,120]
[359209482,1745814427843,231.28369723,0.00045903,120]
[359209483,1745814428486,239.84119403,0.00045903,120]
[359209484,1745814429122,239.84119403,0.00045903,120]
[359209485,1745814429283,160.62986775,0.00045903,120]
[359209487,1745814449830,406.52999464,0.00045903,120]
[359209488,1745814450257,164.31090803,0.00045903,30]
[359209489,1745814461210,174.02711707,0.00045903,30]
[359209490,1745814466096,173.72879462,0.00045903,30]
[359209491,1745814467162,408.54246941,0.00045903,120]
[359209492,1745814473566,150.86087213,0.00045903,30]
[359209493,1745814475123,236.82052348,0.00045903,30]
[359209494,1745814477203,158.03118686,0.00045903,120]
[359209495,1745814486965,178.44066404,0.00027,120]
[359209506,1745814503449,370.96349796,0.00045903,120]
[359209507,1745814506342,487.34179461,0.00045903,120]
[359209508,1745814506439,161.41905388,0.00045903,120]
[359209509,1745814506938,314.65061385,0.00045903,120]
[359209510,1745814507849,220.28568538,0.00028799,120]
[359209511,1745814508233,194.11431865,0.00045903,30]
[359209512,1745814508301,210.13322712,0.00045903,120]
[359209513,1745814509448,356.39822615,0.0003,60]
[359209514,1745814509517,193.19932638,0.00045903,30]
[359209515,1745814511431,358.31480873,0.00045903,120]
[359209516,1745814515395,363.71138391,0.00045903,120]
[359209517,1745814516343,161.22156698,0.00045903,120]
[359209518,1745814516412,299.99999965,0.00028,60]
[359209519,1745814518786,506.99751978,0.00045903,30]
[359209520,1745814519774,317.55981462,0.00045903,45]
[359209522,1745814521039,227.1846316,0.00045903,30]
[359209523,1745814521147,502.59017475,0.00045903,30]
[359209524,1745814552191,500.0,0.00036986,60]
[359209526,1745814578503,312.155825,0.00045903,120]
[359209527,1745814582663,1000.0,0.00036986,60]
[359209534,1745814631626,-1254.51,0.00019651,2]
[359209535,1745814631636,-197.49,0.00019669,2]
[359209536,1745814631787,-52.51,0.00019669,2]
[359209537,1745814631796,-154.834699,0.00019799,2]
[359209538,1745814631806,-1123.63785476,0.0001984,2]
[359209539,1745814631818,-876.36214524,0.0001984,2]
[359209540,1745814631828,-200.0,0.0001984,2]
[359209541,1745814631838,-1200.0,0.00019898,2]
[359209542,1745814631847,-300.0,0.00019899,2]
[359209543,1745814631857,-300.0,0.00019899,2]
[359209544,1745814631867,-9165.3656,0.000199,2]
[359209545,1745814631877,-312.61199765,0.000199,2]
[359209546,1745814631887,-501.2656926,0.000199,2]
[359209547,1745814631896,-1136.74175024,0.000199,2]
[359209548,1745814631906,-500.0,0.00019973,2]
[359209549,1745814631916,-702.46379357,0.0001998,2]
[359209550,1745814631925,-222.02471343,0.00019986,2]
[359209551,1745814631935,-550.0,0.0001999,3]
[359209552,1745814631945,-186.17006131,0.00019999,2]
[359209553,1745814631954,-500.0,0.00019999,2]
[359209554,1745814631966,-500.0,0.00019999,2]
[359209555,1745814631975,-500.0,0.00019999,2]
[359209556,1745814631986,-500.0,0.00019999,2]
[359209557,1745814631996,-500.0,0.00019999,2]
[359209559,1745814632005,-310.31751487,0.00019999,2]
[359209561,1745814632015,-500.0,0.00019999,2]
[359209563,1745814632025,-153.96195914,0.00019999,2]
[359209565,1745814632034,-500.0,0.00019999,2]
[359209569,1745814632043,-300.0,0.00019999,2]
[359209571,1745814632053,-985.4668,0.00019999,2]
[359209572,1745814632062,-310.17,0.00019999,2]
[359209573,1745814632072,-168.8658329,0.00019999,2]
[359209574,1745814632081,-502.0,0.0002,2]
[359209575,1745814632092,-24676.71213905,0.0002,2]
[359209621,1745814637547,-5999.9407416,0.0002,2]
[359209622,1745814637707,-2722.59741403,0.0002,2]
[359209623,1745814637816,-944.88561219,0.0002,2]
[359209624,1745814637872,-15636.85963841,0.0002,2]
[359209625,1745814637882,-43877.27989467,0.0002,2]
[359209626,1745814637893,-354.73181094,0.0002,2]
[359209627,1745814637903,-127491.83007307,0.0002,2]
[359209628,1745814637916,-99417.80520479,0.0002,4]
[359209629,1745814637926,-123590.42615146,0.0002,2]
[359209815,1745814639809,-296.09236962,0.0002,2]
[359209816,1745814639924,-551.41030963,0.0002,2]
[359209833,1745814643747,-470.63,0.0002,2]
[359209855,1745814643978,-1559.73551056,0.0002,2]
[359209858,1745814644031,-1395.0,0.0002,2]
[359209859,1745814644046,-310.92852796,0.0002,2]
[359209864,1745814645540,-621.98042337,0.0002,2]
[359209865,1745814645595,-2102.12994,0.0002,2]
[359209976,1745814711255,155.00080868,0.00045903,30]
[359209977,1745814727476,158.884589,0.00045903,120]
[359209978,1745814744509,155.531,0.00045903,30]
[359209980,1745814894456,152.09,0.00027425,30]
[359209981,1745815031079,-414.17335067,0.00019372,2]
[359209982,1745815040219,-150.0,0.00019372,2]
[359209983,1745815047168,-153.23236294,0.00019372,2]
[359209984,1745815050648,-200.0,0.00019372,2]
[359209985,1745815114300,-82.59428639,0.00019372,2]
[359209986,1745815160421,1151.72,0.00017445,2]
[359209987,1745815277098,250.56734997,0.00019164,2]
[359209988,1745815378150,150.0,0.000193,7]
[359209998,1745815599278,1653.07,0.00045912,30]
[359210015,1745815668703,2000.0,0.00019257,2]
[359210016,1745815668728,2000.0,0.00019257,2]
[359210017,1745815668749,2000.0,0.00019257,2]
[359210018,1745815668773,2000.0,0.00019257,2]
[359210019,1745815668797,2000.0,0.00019257,2]
[359210020,1745815668820,2000.0,0.00019257,2]
[359210021,1745815668841,2000.0,0.00019257,2]
[359210022,1745815668862,2000.0,0.00019257,2]
[359210023,1745815668883,2000.0,0.00019257,2]
[359210024,1745815668904,2000.0,0.00019257,2]
[359210025,1745815668926,2000.0,0.00019257,2]
[359210026,1745815668946,1900.0,0.00019257,2]
[359210027,1745815691615,100.0,0.00019267,2]
[359210028,1745815691639,100.0,0.00019267,2]
[359210029,1745815701546,420.192596,0.00036,120]
[359210034,1745815831654,-300.0,0.00019707,2]
[359210035,1745815831664,-1200.0,0.00019707,2]
[359210036,1745815831673,-300.0,0.00019707,2]
[359210037,1745815831682,-85.935,0.00019708,2]
[359210038,1745815831754,-8067.065,0.00019708,2]
[359210039,1745815831764,-1151.72,0.00019708,2]
[359210040,1745815831773,-154.834699,0.00019799,2]
[359210041,1745815831782,-2268.73799534,0.00019805,2]
[359210042,1745815831795,-2475.883476,0.00019805,2]
[359210043,1745815831849,-54.59707201,0.00019805,2]
[359210044,1745815831859,-150.0,0.00019808,2]
[359210045,1745815831868,-263.66837293,0.0001984,2]
[359210046,1745815831905,-1736.33162707,0.0001984,2]
[359210047,1745815831915,-200.0,0.0001984,2]
[359210048,1745815831926,-248.136,0.00019899,2]
[359210049,1745815831936,-491.01437173,0.00019899,2]
[359210050,1745815831946,-16166.1180012,0.000199,2]
[359210051,1745815831958,-2583.2231988,0.000199,2]
[359210053,1745815831968,-1000.0,0.000199,2]
[359210054,1745815831977,-1098.85035872,0.000199,2]
[359210055,1745815831986,-287.84717727,0.00019972,2]
[359210056,1745815831996,-314.73318814,0.00019973,2]
[359210057,1745815832013,-188.95399876,0.00019973,2]
[359210058,1745815832023,-441.29430162,0.00019973,2]
[359210062,1745815833879,250.0,0.00017,2]
[359210063,1745815834909,300.0,0.00019,2]
[359210064,1745815837718,-61.97905207,0.00019973,2]
[359210065,1745815837728,-500.0,0.00019973,2]
[359210066,1745815837738,-94.69094793,0.00019999,2]
[359210067,1745815837772,-217.32536793,0.00019999,2]
[359210068,1745815837782,-577.0,0.0002,2]
[359210069,1745815837793,-43877.27989467,0.0002,2]
[359210070,1745815837803,-354.73181094,0.0002,2]
[359210071,1745815837813,-365342.5956998,0.0002,2]
[359210072,1745815837829,-1594.10902335,0.0002,2]
[359210073,1745815837884,-2074.10097665,0.0002,2]
[359210094,1745815839848,-257.69,0.00019994,2]
[359210095,1745815839858,-317.03339879,0.0002,2]
[359210096,1745815839869,-3622.03466094,0.0002,2]
[359210097,1745815839880,-844.6309636,0.0002,2]
[359210098,1745815839903,-863.96141753,0.0002,2]
[359210099,1745815840278,-758.79780336,0.0002,2]
[359210100,1745815840290,-310.16673675,0.0002,2]
[359210118,1745815843032,-494.15689218,0.0002,2]
[359210130,1745815845785,-1853.47,0.0002,2]
[359210177,1745815890620,1280.0,0.00036,120]
[359210178,1745815969413,152.09,0.00027425,30]
[359210181,1745816259081,509087.24095825,0.00045912,60]
[359210182,1745816370784,600.0,0.000194,2]
[359210183,1745816398264,150.0,0.00019299,7]
[359210186,1745816411060,2000.0,0.000301,120]
[359210187,1745816426500,2000.0,0.000301,120]
[359210188,1745816446682,750.0,0.00019386,2]
[359210189,1745816446704,250.0,0.00019386,2]
[359210190,1745816522007,175.0,0.00045918,120]
[359210191,1745816565117,204.83255352,0.00045918,120]
[359210192,1745816565871,1167.02,0.00017327,2]
[359210193,1745816630752,162.27,0.00019174,2]
[359210194,1745816631412,162.27,0.00025565,120]
[359210195,1745816631621,162.27,0.00028761,120]
[359210196,1745816650652,200.0,0.00045918,30]
[359210197,1745816719686,420.71,0.00019111,2]
[359210198,1745816719707,2000.0,0.00019111,2]
[359210199,1745816719734,3013.3,0.00019111,2]
[359210200,1745816725542,23900.0,0.00019107,2]
[359210218,1745816807871,6390.38805,0.00045918,30]
[359210221,1745816945967,325.4152875,0.0003698,120]
[359210223,1745817010524,1585.0,0.000301,120]
[359210227,1745817031854,-814.765069,0.00019516,2]
[359210228,1745817031869,-30.96281846,0.00019555,2]
[359210229,1745817031881,-219.03718154,0.00019555,2]
[359210230,1745817031891,-200.0,0.00019565,2]
[359210231,1745817031901,-144.4428184,0.00019591,2]
[359210232,1745817031913,-1022.5771816,0.00019591,2]
[359210233,1745817031922,-249.19968241,0.000197,2]
[359210234,1745817031932,-870.2646,0.0001979,2]
[359210235,1745817031941,-429.75065803,0.00019873,2]
[359210236,1745817031953,-70.24934197,0.00019873,2]
[359210237,1745817031962,-1200.0,0.00019889,2]
[359210238,1745817031971,-300.0,0.00019889,2]
[359210239,1745817031981,-300.0,0.00019889,2]
[359210240,1745817031990,-7544.05065803,0.0001989,2]
[359210241,1745817032001,-14099.30935989,0.0001989,2]
[359210242,1745817032011,-394.0,0.00019899,2]
[359210243,1745817032020,-355.6079,0.000199,2]
[359210244,1745817032030,-66799.04710481,0.000199,2]
[359210245,1745817032042,-2602.0,0.000199,2]
[359210246,1745817032053,-12109.12899519,0.000199,2]
[359210247,1745817032063,-1000.0,0.000199,2]
[359210248,1745817032072,-198.509,0.000199,2]
[359210249,1745817032082,-7042.61225903,0.000199,2]
[359210250,1745817032091,-2500.0,0.000199,2]
[359210251,1745817032100,-924.0,0.000199,2]
[359210252,1745817032110,-1062.22201341,0.000199,2]
[359210253,1745817032120,-814.765069,0.00019932,2]
[359210254,1745817032134,-500.0,0.00019945,2]
[359210255,1745817032143,-502.09629777,0.00019973,2]
[359210256,1745817032153,-500.0,0.00019973,2]
[359210257,1745817032163,-161.53124632,0.00019973,2]
[359210258,1745817032174,-500.0,0.00019999,2]
[359210259,1745817032186,-467.22226041,0.00019999,2]
[359210260,1745817032198,-500.0,0.00019999,2]
[359210263,1745817032207,-500.0,0.00019999,2]
[359210265,1745817032217,-217.32536793,0.00019999,2]
[359210267,1745817032227,-578.0,0.0002,2]
[359210269,1745817032237,-354.73181094,0.0002,2]
[359210271,1745817032246,-24423.19133918,0.0002,2]
[359210273,1745817032257,-4463.60175122,0.0002,2]
[359210275,1745817032269,-2646.59973272,0.0002,2]
[359210278,1745817032281,-916.90609152,0.0002,2]
[359210280,1745817032292,-11585.68220505,0.0002,2]
[359210282,1745817032301,-3528.72508153,0.0002,2]
[359210286,1745817032320,-387.13222533,0.0002,2]
[359210291,1745817032338,-1895.58556209,0.0002,2]
[359210294,1745817032349,-626.0537296,0.0002,2]
[359210357,1745817037884,-177.36590547,0.0002,2]
[359210358,1745817037894,-524.0,0.0002,2]
[359210359,1745817037903,-2578.36709899,0.0002,2]
[359210360,1745817037991,-13522.69347749,0.0002,2]
[359210361,1745817038047,-1529.9557274,0.0002,2]
[359210362,1745817038059,-366.12785766,0.0002,2]
[359210363,1745817038156,-28496.01540568,0.0002,2]
[359210364,1745817038166,-381872.91736766,0.0002,2]
[359210365,1745817038263,-531.63683674,0.0002,2]
[359210366,1745817038320,-1444.90155595,0.0002,2]
[359210523,1745817040146,-657.96086,0.0002,2]
[359210525,1745817040157,-290.41880037,0.0002,2]
[359210547,1745817040366,-933.36463944,0.0002,2]
[359210587,1745817040741,-542500.0,0.0002,2]
[359210635,1745817044975,-1060.0,0.0002,2]
[359210636,1745817045031,-571.02940977,0.0002,2]
[359210637,1745817045043,-21717.53522454,0.0002,2]
[359210656,1745817045954,-924.0,0.0002,2]
[359210899,1745817303146,1222.94605926,0.00027397,30]
[359210905,1745817380685,451.6633,0.00045918,30]
[359210906,1745817462458,1000.0,0.00019363,2]
[359210907,1745817511632,1828.0,0.00045918,30]
[359210908,1745817512873,1828.0,0.00045918,30]
[359210909,1745817513632,1828.0,0.00045918,30]
[359210910,1745817514293,1828.0,0.00045918,30]
[359210911,1745817514932,1828.0,0.00045918,30]
[359210912,1745817591194,24420.89385755,0.00045915,30]
[359210913,1745817595962,150.0,0.00019406,7]
[359210914,1745817603094,1222.94605926,0.00027397,30]
[359210915,1745817652923,1108.67,0.00017168,2]
[359210916,1745817654306,-165.24205236,0.00019432,2]
[359210917,1745817657485,-156.90938162,0.00019432,2]
[359210918,1745817662910,-247.62707732,0.00019432,2]
[359210919,1745817668061,250.0,0.00017,2]
[359210920,1745817669172,300.0,0.00019,2]
[359210921,1745817671107,324.800472,0.00019335,2]
[359210922,1745817686647,266.529528,0.00019335,2]
[359210923,1745817686669,58.270944,0.00019335,2]
[359210924,1745817707916,1000.0,0.00045915,30]
[359210925,1745817726342,162.27,0.00019086,2]
[359210926,1745817765933,3002.51,0.00045915,30]
[359210927,1745817766860,-253.09838701,0.00019335,2]
[359210928,1745817770108,-71.70208499,0.00019335,2]
[359210929,1745817771716,2000.0,0.00019029,2]
[359210930,1745817846137,939451.40828301,0.00045916,120]
[359210931,1745817862575,2008.43873168,0.00018,2]
[359210932,1745817886770,320600.0,0.00045916,30]
[359210933,1745817887249,23900.0,0.00019022,2]
[359210934,1745817899446,-538.8914887,0.00019432,2]
[359210935,1745817914862,4461.1085113,0.00019041,2]
[359210936,1745817914887,5538.8914887,0.00019041,2]
[359210944,1745818049997,200.0,0.0001904,2]
[359210945,1745818072867,10830.79833206,0.00045916,120]
[359210947,1745818100581,600.0,0.0002,10]
[359210949,1745818125936,1000.0,0.00036,60]
[359210950,1745818145003,1000.0,0.0003,30]
[359210956,1745818167058,1000.0,0.00034,120]
[359210958,1745818187595,1000.0,0.00036,120]
[359210959,1745818191499,150.0,0.0003,30]
[359210960,1745818193319,150.0,0.0003,30]
[359210973,1745818232078,-200.0,0.00019501,2]
[359210974,1745818232087,-177.2,0.0001957,2]
[359210975,1745818232096,-182.59097838,0.0001958,2]
[359210976,1745818232106,-1200.0,0.00019599,2]
[359210977,1745818232115,-300.0,0.00019599,2]
[359210978,1745818232124,-10096.04912382,0.000196,2]
[359210979,1745818232134,-699.02676907,0.000197,2]
[359210980,1745818232143,-569.7785113,0.00019767,2]
[359210981,1745818232153,-150.0,0.00019799,2]
[359210982,1745818232163,-273.9577926,0.00019799,2]
[359210983,1745818232380,-368.5351,0.000198,2]
[359210984,1745818232391,-500.0,0.00019808,2]
[359210985,1745818232401,-500.0,0.00019808,2]
[359210986,1745818232411,-14433.35,0.00019813,2]
[359210987,1745818232422,-150.0,0.00019845,2]
[359210988,1745818232431,-152.0,0.00019899,2]
[359210989,1745818232442,-330.7682,0.000199,2]
[359210990,1745818232453,-315.00611737,0.000199,2]
[359210991,1745818232462,-19397.68592523,0.000199,2]
[359210992,1745818232473,-9131.20771,0.000199,2]
[359210993,1745818232484,-7382.376725,0.000199,2]
[359210994,1745818232496,-6127.228,0.000199,2]
[359210995,1745818232507,-1110.34240261,0.000199,2]
[359210996,1745818232516,-500.0,0.000199,2]
[359210997,1745818232527,-3752.89664462,0.000199,2]